bitfinex/quotes_BTCUSD_20260311
["timestamp","ask_amount","ask_price","bid_price","bid_amount"]
[1773249485540,0.0213487,71002.0,70972.0,0.0434851]
[1773249485541,0.0213487,71002.0,70984.0,0.0002]
[1773249485871,0.0213487,71002.0,70971.0,0.07044932]
[1773249485872,0.04521081,71000.0,70976.0,0.0002]
[1773249486069,0.04521081,70998.0,70976.0,0.07064633]
[1773249486371,0.04521081,70998.0,70976.0,0.0002]
[1773249487019,0.04521081,70998.0,70976.0,0.07064585]
[1773249487267,0.04521081,70996.0,70977.0,0.0434851]
[1773249487606,0.0014,70995.0,70977.0,0.0434851]
[1773249487807,0.07042848,70994.0,70977.0,0.0434851]
[1773249488015,0.11563929,70994.0,70977.0,0.0434851]
[1773249488208,0.04521081,70993.0,70976.0,0.0002]
[1773249488413,0.04521081,70993.0,70971.0,0.0002652]
[1773249489635,0.04521081,70993.0,70969.0,0.0002]
[1773249489636,0.04521081,70993.0,70951.0,0.0434851]
[1773249489851,0.04521081,70991.0,70951.0,0.0434851]
[1773249490052,0.10277863,70992.0,70954.0,0.0981506]
[1773249490254,0.04521081,70991.0,70954.0,0.0981506]
[1773249490630,0.12508581,70990.0,70954.0,0.0276826]
[1773249490918,0.04521081,70986.0,70949.0,0.07067295]
[1773249491119,0.10277863,70992.0,70953.0,0.0434851]
[1773249491120,0.04521081,70984.0,70953.0,0.0434851]
[1773249491280,0.04521081,70982.0,70953.0,0.0434851]
[1773249491463,0.04521081,70982.0,70952.0,0.22006356]
[1773249491464,0.04521081,70978.0,70954.0,0.05]
[1773249491664,0.04521081,70976.0,70949.0,0.07067283]
[1773249491975,0.07044833,70974.0,70954.0,0.0434851]
[1773249492371,0.07044833,70974.0,70951.0,0.14810096]
[1773249492572,0.04661081,70973.0,70952.0,0.07047015]
[1773249492994,0.04661081,70973.0,70959.0,0.00014093]
[1773249493865,0.07045031,70972.0,70959.0,0.00014093]
[1773249494089,0.04521081,70971.0,70959.0,0.00014093]
[1773249494945,0.0014,70970.0,70959.0,0.00014093]
[1773249496093,0.07045329,70969.0,70959.0,0.00014093]
[1773249498130,0.0014,70974.0,70960.0,0.0434851]
[1773249498343,0.00151151,70974.0,70960.0,0.0434851]
[1773249498588,0.04521081,70973.0,70959.0,0.00014093]
[1773249498792,0.04521081,70973.0,70951.0,0.07067099]
[1773249498988,0.04521081,70973.0,70952.0,0.0434851]
[1773249499166,0.04521081,70973.0,70953.0,0.0434851]
[1773249499372,0.00011151,70974.0,70953.0,0.0434851]
[1773249500133,0.00011151,70974.0,70952.0,0.22006356]
[1773249500134,0.04262252,70971.0,70951.0,0.07066918]
[1773249500280,0.04262252,70971.0,70951.0,0.0002]
[1773249501006,0.07045031,70972.0,70951.0,0.07067113]
[1773249501007,0.04406252,70970.0,70951.0,0.07067113]
[1773249501411,0.07045031,70972.0,70951.0,0.07067113]
[1773249501412,0.00144,70969.0,70954.0,0.04255906]
[1773249502495,0.00144,70969.0,70955.0,0.07046719]
[1773249503216,0.0718934,70969.0,70953.0,0.2907732]
[1773249503413,0.04262252,70968.0,70951.0,0.07211041]
[1773249504259,0.00144,70969.0,70951.0,0.07211041]
[1773249504481,0.04262252,70967.0,70945.0,0.00144]
[1773249504670,0.03789739,70967.0,70945.0,0.00144]
[1773249505071,0.03789739,70967.0,70943.0,0.07047713]
[1773249505221,0.03789739,70967.0,70943.0,0.07191713]
[1773249505725,0.03789739,70967.0,70943.0,0.07047713]
[1773249506526,0.07045627,70966.0,70943.0,0.07047713]
[1773249506723,0.14366964,70966.0,70943.0,0.07047713]
[1773249506927,0.07056032,70974.0,70950.0,0.12508581]
[1773249507146,0.07465337,70973.0,70952.0,0.22030601]
[1773249507762,0.07321337,70973.0,70952.0,0.22030601]
[1773249507968,0.07321337,70971.0,70952.0,0.22030601]
[1773249508127,0.07321337,70971.0,70951.0,0.00144]
[1773249508336,0.07321337,70971.0,70948.0,0.00144]
[1773249508537,0.0704523,70970.0,70948.0,0.00144]
[1773249508750,0.07321337,70969.0,70942.0,0.00144]
[1773249508953,0.07321337,70969.0,70937.0,0.0722295]
[1773249509147,0.07321337,70969.0,70937.0,0.0003046]
[1773249509399,0.07321337,70969.0,70936.0,1e-08]
[1773249509652,0.07321337,70969.0,70935.0,0.0002]
[1773249510800,0.07321337,70967.0,70935.0,0.0002]
[1773249510962,0.07321337,70965.0,70935.0,0.0002]
[1773249512004,0.07321337,70965.0,70936.0,0.07048607]
[1773249512199,0.07321337,70963.0,70936.0,0.07048607]
[1773249512578,0.002,70965.0,70940.0,0.12523167]
[1773249512579,0.00144,70962.0,70940.0,0.12523167]
[1773249512778,0.002,70965.0,70941.0,0.0719211]
[1773249512982,0.00144,70962.0,70941.0,0.0719211]
[1773249513352,0.00144,70964.0,70941.0,0.0719211]
[1773249513549,0.07321337,70963.0,70941.0,0.0719211]
[1773249513829,0.00144,70964.0,70941.0,0.0719211]
[1773249514346,0.07321337,70963.0,70941.0,0.0719211]
[1773249514777,0.07046024,70962.0,70941.0,0.0719211]
[1773249515177,0.07046024,70962.0,70941.0,0.0739211]
[1773249515616,0.07046024,70962.0,70942.0,0.00144]
[1773249516020,0.07321337,70963.0,70942.0,0.00144]
[1773249516221,0.07465337,70963.0,70942.0,0.00144]
[1773249517127,0.07045136,70971.0,70943.0,0.07047911]
[1773249517327,0.00144,70970.0,70944.0,0.00144]
[1773249517510,0.07321337,70969.0,70944.0,0.00144]
[1773249519125,0.07045428,70968.0,70945.0,0.07047713]
[1773249519327,0.14366765,70968.0,70945.0,0.07047713]
[1773249519521,0.07045428,70968.0,70945.0,0.07047713]
[1773249519725,0.07321337,70967.0,70945.0,0.07047713]
[1773249520735,0.07321337,70967.0,70946.0,0.00144]
[1773249520923,0.07321337,70967.0,70940.0,0.00144]
[1773249521159,0.07045428,70971.0,70935.0,0.07068607]
[1773249521160,0.24106268,70994.0,70953.0,0.07046918]
[1773249521344,0.07321337,70989.0,70960.0,0.12523167]
[1773249521599,0.00144,70989.0,70960.0,0.12523167]
[1773249521807,0.14386813,70988.0,70954.0,0.00144]
[1773249521959,0.07321337,70987.0,70955.0,0.00144]
[1773249522580,0.07321337,70987.0,70953.0,0.1065447]
[1773249522779,0.07321337,70987.0,70956.0,0.00144]
[1773249523080,0.00144,70986.0,70960.0,0.12623167]
[1773249523279,0.07321337,70984.0,70961.0,0.07046123]
[1773249523596,0.07321337,70984.0,70962.0,0.00144]
[1773249523795,0.07321337,70984.0,70961.0,0.07046123]
[1773249524094,0.07321337,70984.0,70962.0,0.00144]
[1773249525117,0.00144,70983.0,70962.0,0.00144]
[1773249525322,0.07044039,70982.0,70963.0,0.07045925]
[1773249526374,0.1436532,70983.0,70963.0,0.07045925]
[1773249526582,0.00144,70982.0,70963.0,0.07045925]
[1773249527409,0.07188103,70982.0,70963.0,0.07045925]
[1773249527641,0.1450944,70982.0,70963.0,0.07045925]
[1773249527875,0.00144,70981.0,70963.0,0.07045925]
[1773249528054,0.07321337,70980.0,70963.0,0.07045925]
[1773249529885,0.07321337,70979.0,70957.0,0.00144]
[1773249530095,0.07044314,70980.0,70953.0,0.00011151]
[1773249530096,0.07321337,70977.0,70953.0,0.00011151]
[1773249531359,0.07044634,70976.0,70953.0,0.00011151]
[1773249531555,0.07321337,70975.0,70953.0,0.00011151]
[1773249531965,0.07321337,70973.0,70953.0,0.00011151]
[1773249532999,0.00144,70972.0,70953.0,0.00011151]
[1773249533199,0.07321337,70971.0,70953.0,0.00011151]
[1773249533576,0.00144,70970.0,70953.0,0.00011151]
[1773249533915,0.00144,70969.0,70953.0,0.00011151]
[1773249534419,0.00144,70971.0,70953.0,0.00011151]
[1773249534631,0.07321337,70981.0,70960.0,0.12523167]
[1773249534786,0.00022001,70984.0,70960.0,0.12523167]
[1773249534787,0.00144,70978.0,70961.0,0.00144]
[1773249535206,0.08495959,70981.0,70961.0,0.00144]
[1773249535389,0.00144,70978.0,70961.0,0.00144]
[1773249535608,0.00144,70978.0,70962.0,0.07046024]
[1773249537111,0.0864202,70978.0,70962.0,0.07046024]
[1773249537736,0.00144,70978.0,70962.0,0.07046024]
[1773249538031,0.0849802,70977.0,70956.0,0.0704659]
[1773249538234,0.0849802,70977.0,70955.0,0.07046716]
[1773249538559,0.0849802,70977.0,70944.0,0.07067749]
[1773249538830,0.0849802,70977.0,70944.0,0.07078916]
[1773249539530,0.0849802,70977.0,70944.0,0.07222916]
[1773249539889,0.0849802,70977.0,70944.0,0.07078916]
[1773249539890,0.07044634,70976.0,70944.0,0.07078916]
[1773249540109,0.07044634,70976.0,70944.0,0.07222916]
[1773249540110,0.08501782,70975.0,70944.0,0.07222916]
[1773249541629,0.08501782,70975.0,70962.0,0.0002]
[1773249541845,0.08501782,70975.0,70944.0,0.07222916]
[1773249542044,0.08503728,70973.0,70944.0,0.07222916]
[1773249542249,0.08503728,70971.0,70954.0,0.0002]
[1773249543393,0.08503728,70971.0,70947.0,0.0002]
[1773249543685,0.08503728,70971.0,70937.0,0.0001506]
[1773249543834,0.08514883,70971.0,70937.0,0.0001506]
[1773249544036,0.0704523,70970.0,70937.0,0.0001506]
[1773249544275,0.08514013,70969.0,70937.0,0.0001506]
[1773249545491,0.08614013,70969.0,70937.0,0.0001506]
[1773249545644,0.08714013,70969.0,70937.0,0.0001506]
[1773249546064,0.08514013,70969.0,70937.0,0.0001506]
[1773249546267,0.08515661,70967.0,70937.0,0.0001506]
[1773249546483,0.08515661,70965.0,70932.0,0.13861351]
[1773249546794,0.08515661,70965.0,70934.0,0.07048607]
[1773249547790,0.14054508,70967.0,70929.0,0.07069218]
[1773249547791,0.08516683,70963.0,70929.0,0.07069218]
[1773249547953,0.08516683,70963.0,70930.0,0.12523167]
[1773249548150,0.08516683,70963.0,70929.0,0.07069218]
[1773249548472,0.08516683,70961.0,70929.0,0.07069218]
[1773249550434,0.07046223,70960.0,70929.0,0.07069218]
[1773249550634,0.11494103,70959.0,70929.0,0.07069218]
[1773249550951,0.11494103,70957.0,70929.0,0.07069218]
[1773249551157,0.09796303,70971.0,70947.0,0.12523167]
[1773249551353,0.11494103,70968.0,70940.0,0.00144]
[1773249551536,0.11494103,70966.0,70941.0,0.00144]
[1773249552805,0.11494103,70966.0,70942.0,0.07048011]
[1773249552806,0.11494103,70965.0,70942.0,0.07048011]
[1773249553587,0.13994103,70963.0,70942.0,0.07048011]
[1773249554267,0.13994103,70963.0,70941.0,0.07192011]
[1773249554472,0.13994103,70963.0,70937.0,0.00144]
[1773249554676,0.13994103,70963.0,70929.0,0.0002]
[1773249554677,0.13994103,70961.0,70929.0,0.07069275]
[1773249554990,0.13994103,70961.0,70929.0,0.07069274]
[1773249555312,0.13994103,70961.0,70929.0,0.07213274]
[1773249556023,0.00144,70960.0,70929.0,0.07213274]
[1773249556174,0.13994103,70959.0,70929.0,0.07213274]
[1773249557355,0.10179254,70957.0,70929.0,0.00164]
[1773249557477,0.10179254,70957.0,70929.0,0.0002]
[1773249557828,0.10179254,70957.0,70921.0,0.0002]
[1773249558007,0.10179254,70957.0,70913.0,0.00144]
[1773249558008,0.536564,70954.0,70913.0,0.00144]
[1773249558235,0.10179254,70949.0,70908.0,0.20374143]
[1773249558427,0.10179254,70949.0,70900.0,0.34599687]
[1773249558428,0.927933,70946.0,70917.0,1e-08]
[1773249558626,0.10179254,70943.0,70917.0,1e-08]
[1773249559019,0.10179254,70943.0,70904.0,0.27653833]
[1773249559229,0.10179254,70943.0,70905.0,0.27653833]
[1773249559434,0.10179254,70943.0,70900.0,0.07052146]
[1773249559435,0.10998407,70941.0,70902.0,0.27653833]
[1773249559647,0.10998407,70941.0,70905.0,0.27653833]
[1773249559854,0.10998407,70941.0,70907.0,0.27653833]
[1773249560039,0.07048011,70942.0,70907.0,0.27653833]
[1773249560040,0.10998407,70939.0,70907.0,0.27653833]
[1773249561232,0.10998407,70939.0,70906.0,0.27797833]
[1773249561414,0.10998407,70937.0,70907.0,0.07051489]
[1773249563003,0.10998407,70937.0,70910.0,0.12523167]
[1773249563206,0.07048408,70938.0,70910.0,0.12523167]
[1773249563407,0.07059116,70943.0,70921.0,0.19796246]
[1773249563615,0.07059116,70943.0,70921.0,0.19940246]
[1773249563616,0.00144,70942.0,70921.0,0.19940246]
[1773249563863,0.00011147,70943.0,70921.0,0.19940246]
[1773249564103,0.00144,70942.0,70921.0,0.19940246]
[1773249564507,0.00144,70941.0,70921.0,0.19940246]
[1773249564834,0.00011147,70943.0,70921.0,0.19940246]
[1773249565239,0.00144,70942.0,70921.0,0.19940246]
[1773249565441,0.00144,70942.0,70922.0,0.07049998]
[1773249565848,0.00144,70941.0,70922.0,0.07049998]
[1773249566054,0.00144,70942.0,70922.0,0.07049998]
[1773249566551,0.00011147,70943.0,70922.0,0.07049998]
[1773249566703,0.000358,70967.0,70948.0,0.12523167]
[1773249566880,0.10998407,70966.0,70948.0,0.12667167]
[1773249567754,0.07189726,70965.0,70948.0,0.1971457]
[1773249568317,0.18188133,70965.0,70948.0,0.1971457]
[1773249568534,0.07189726,70965.0,70948.0,0.1971457]
[1773249568726,0.10998407,70964.0,70948.0,0.1971457]
[1773249569104,0.10998407,70964.0,70948.0,0.00144]
[1773249569473,0.07045925,70963.0,70948.0,0.00144]
[1773249570090,0.07045925,70963.0,70947.0,0.07047499]
[1773249570303,0.20688199,70965.0,70947.0,0.07047499]
[1773249571112,0.07189792,70965.0,70947.0,0.07047499]
[1773249571312,0.20688199,70965.0,70947.0,0.07047499]
[1773249571510,0.20688199,70965.0,70946.0,0.07047514]
[1773249572037,0.20688199,70965.0,70945.0,0.07047713]
[1773249572235,0.20544199,70965.0,70945.0,0.07047713]
[1773249572439,0.00144,70964.0,70945.0,0.07047713]
[1773249573851,0.07189861,70964.0,70945.0,0.07047713]
[1773249574212,0.20688268,70964.0,70945.0,0.07047713]
[1773249574592,0.13498407,70962.0,70936.0,0.00144]
[1773249574715,0.13498407,70962.0,70934.0,0.00144]
[1773249575119,0.13498407,70962.0,70910.0,0.12515057]
[1773249575334,0.13498407,70962.0,70922.0,0.00144]
[1773249575529,0.13498407,70962.0,70923.0,0.00144]
[1773249575747,0.13498407,70960.0,70924.0,0.07049799]
[1773249576089,0.00014093,70958.0,70940.0,0.12515057]
[1773249576265,0.13498407,70957.0,70930.0,0.12515057]
[1773249576468,0.13498407,70957.0,70931.0,0.00144]
[1773249577060,0.00014093,70958.0,70931.0,0.00144]
[1773249577459,0.13498407,70964.0,70940.0,0.12515057]
[1773249577460,0.00144,70964.0,70940.0,0.12515057]
[1773249577661,0.00144,70964.0,70941.0,0.0704811]
[1773249577898,0.00166001,70965.0,70941.0,0.0719211]
[1773249578505,0.00022001,70965.0,70941.0,0.0719211]
[1773249578752,0.00144,70964.0,70941.0,0.0719211]
[1773249579249,0.00022001,70965.0,70941.0,0.0719211]
[1773249579450,0.00166001,70965.0,70941.0,0.0719211]
[1773249580311,0.13498407,70964.0,70942.0,0.07048011]
[1773249580803,0.00166001,70965.0,70942.0,0.07048011]
[1773249581008,0.00022001,70965.0,70942.0,0.07048011]
[1773249581755,0.00144,70964.0,70942.0,0.07048011]
[1773249581996,0.20543735,70970.0,70942.0,0.07048011]
[1773249581997,0.00022001,70979.0,70954.0,0.12515057]
[1773249582121,0.00022001,70979.0,70955.0,0.20891684]
[1773249583170,0.0001766,70981.0,70955.0,0.20891684]
[1773249583802,0.0001766,70981.0,70956.0,0.0704662]
[1773249584976,0.23901684,71005.0,70971.0,0.17701795]
[1773249585177,0.07063748,71006.0,70972.0,0.00144]
[1773249585405,0.07063692,71006.0,70972.0,0.00144]
[1773249585610,0.00144,71004.0,70972.0,0.00144]
[1773249585811,0.00144,71004.0,70973.0,0.07044932]
[1773249586138,0.00022001,71006.0,70980.0,0.12515057]
[1773249586291,0.00022001,71006.0,70981.0,0.00144]
[1773249587407,0.0002842,71012.0,70981.0,0.00144]
[1773249587590,0.0002842,71012.0,70981.0,0.00155161]
[1773249587777,0.14815053,71011.0,70981.0,0.00155161]
[1773249587986,0.0002842,71012.0,70981.0,0.00155161]
[1773249587987,0.0002842,71012.0,70982.0,0.07044039]
[1773249588314,0.00140811,71017.0,70982.0,0.07044039]
[1773249588315,0.07053876,71025.0,70990.0,0.12515057]
[1773249588519,0.14837054,71021.0,70991.0,0.00144]
[1773249588707,0.14837054,71021.0,70992.0,0.00144]
[1773249589009,0.14837054,71021.0,70982.0,0.07044039]
[1773249589010,0.14815053,71017.0,70993.0,0.00144]
[1773249589202,0.14815053,71017.0,70994.0,0.00144]
[1773249589390,0.14815053,71017.0,70982.0,0.07044039]
[1773249589391,1e-08,71021.0,70995.0,0.00144]
[1773249589591,0.14815053,71020.0,70993.0,0.03461553]
[1773249589819,0.14815053,71020.0,70994.0,0.00144]
[1773249590026,0.14815053,71020.0,70995.0,0.00144]
[1773249590191,0.14815053,71020.0,70996.0,0.00144]
[1773249590391,1e-08,71021.0,70997.0,0.00144]
[1773249590604,1e-08,71021.0,70984.0,0.0704384]
[1773249590605,1e-08,71021.0,70998.0,0.00144]
[1773249590811,1e-08,71021.0,70999.0,0.00144]
[1773249591032,1e-08,71021.0,71000.0,0.00144]
[1773249591237,1e-08,71021.0,71001.0,0.00129127]
[1773249591399,1e-08,71021.0,71002.0,0.00144]
[1773249591599,1e-08,71021.0,70990.0,0.12515057]
[1773249591600,1e-08,71021.0,71003.0,0.00144]
[1773249591805,1e-08,71021.0,71004.0,0.00144]
[1773249592004,1e-08,71021.0,71005.0,0.07041757]
[1773249592225,0.00022001,71017.0,71005.0,0.07041757]
[1773249594702,0.00022001,71017.0,71005.0,0.07141757]
[1773249594903,0.14837054,71017.0,71005.0,0.07141757]
[1773249595201,0.14837054,71017.0,71005.0,0.07041757]
[1773249595407,0.14837054,71017.0,71005.0,0.07141757]
[1773249596009,0.14837054,71017.0,71005.0,0.07041757]
[1773249596210,0.14837054,71017.0,71005.0,0.001]
[1773249596408,0.00022001,71017.0,71005.0,0.001]
[1773249596765,1e-08,71021.0,71005.0,0.001]
[1773249597577,1e-08,71021.0,71004.0,0.07185828]
[1773249597990,1e-08,71021.0,71005.0,0.001]
[1773249598185,1e-08,71021.0,71006.0,0.07041658]
[1773249598941,1e-08,71021.0,71006.0,0.07026786]
[1773249600696,1e-08,71021.0,71005.0,0.07041658]
[1773249600897,1e-08,71021.0,70980.0,0.29110753]
[1773249600898,0.12515057,71020.0,70987.0,0.07043543]
[1773249601099,0.14815053,71019.0,70987.0,0.07198704]
[1773249601530,1e-08,71021.0,71006.0,0.001]
[1773249601863,1e-08,71021.0,70997.0,0.00144]
[1773249602088,1e-08,71021.0,71006.0,0.001]
[1773249602431,1e-08,71021.0,71001.0,0.07042088]
[1773249602432,0.14959053,71020.0,71001.0,0.07042088]
[1773249602608,0.14959053,71020.0,71000.0,0.07042235]
[1773249602929,0.14959053,71020.0,70998.0,0.07042402]
[1773249603160,0.07040172,71021.0,70998.0,0.07042402]
[1773249603161,1e-08,71021.0,70998.0,0.07042402]
[1773249603510,0.14815054,71021.0,70998.0,0.06742402]
[1773249603713,0.14915054,71021.0,70998.0,0.06742402]
[1773249603914,0.14915054,71021.0,70993.0,0.00144]
[1773249604112,0.14815054,71021.0,70993.0,0.00144]
[1773249604292,0.14815053,71019.0,70994.0,0.07042848]
[1773249604702,1e-08,71021.0,70995.0,0.134689]
[1773249604921,1e-08,71021.0,70994.0,0.07042848]
[1773249605128,1e-08,71021.0,70995.0,0.221174]
[1773249605333,0.00022001,71025.0,70995.0,0.221174]
[1773249605334,0.00022001,71025.0,70995.0,0.165654]
[1773249605913,0.00022001,71025.0,70995.0,0.166654]
[1773249606119,0.00022001,71025.0,70996.0,0.365637]
[1773249606303,0.00022001,71025.0,70998.0,0.473631]
[1773249606702,0.00022001,71025.0,70998.0,0.365976]
[1773249607155,0.00022001,71025.0,71000.0,0.12515057]
[1773249607457,0.00022001,71025.0,71001.0,0.00144]
[1773249607822,0.00022001,71021.0,71001.0,0.00144]
[1773249608576,0.00022001,71032.0,71003.0,0.04668599]
[1773249608751,7.5e-05,71038.0,71003.0,0.04668599]
[1773249609657,0.01124,71042.0,71010.0,0.12515057]
[1773249609983,0.01124,71042.0,71011.0,0.00144]
[1773249610152,0.14815053,71037.0,71012.0,0.00144]
[1773249610349,0.07038617,71037.0,71014.0,0.07040865]
[1773249610602,0.14815053,71036.0,71014.0,0.07040865]
[1773249610796,0.14852258,71036.0,71014.0,0.07040865]
[1773249610996,0.14852258,71036.0,71015.0,0.00144]
[1773249612248,0.14852258,71036.0,71015.0,0.00244]
[1773249612554,0.14815053,71034.0,71016.0,0.07040666]
[1773249613160,0.14959053,71034.0,71016.0,0.07040666]
[1773249614686,0.07038981,71033.0,71016.0,0.07040666]
[1773249614890,0.14815053,71033.0,71016.0,0.07040666]
[1773249615092,0.14815053,71033.0,71004.0,0.07041856]
[1773249615307,0.14815053,71033.0,70997.0,0.07042512]
[1773249615308,0.14815053,71033.0,70999.0,0.00144]
[1773249617000,0.14815053,71031.0,70999.0,0.00144]
[1773249617420,0.0718308,71032.0,70999.0,0.00144]
[1773249617421,0.0703908,71032.0,70999.0,0.00144]
[1773249617623,0.14815053,71033.0,70999.0,0.11242101]
[1773249617827,0.14815053,71033.0,71000.0,0.11098101]
[1773249618022,0.14915053,71033.0,71000.0,0.11098101]
[1773249618247,0.14915053,71033.0,71001.0,0.11098101]
[1773249619174,0.14815053,71031.0,71002.0,0.07186055]
[1773249619352,0.14815053,71031.0,71003.0,0.11098101]
[1773249619753,0.14815053,71031.0,71004.0,0.00144]
[1773249620138,0.14815053,71031.0,71005.0,0.11242101]
[1773249620363,0.14815053,71031.0,71006.0,0.00144]
[1773249621306,0.14815053,71029.0,71001.0,0.18284156]
[1773249621595,0.14815053,71027.0,70988.0,0.00144]
[1773249621899,0.1687919,71041.0,71000.0,0.12515057]
[1773249622179,0.0280771,71055.0,71021.0,1.2946]
[1773249622180,0.05556132,71055.0,71021.0,1.2946]
[1773249622364,0.02832918,71055.0,71024.0,0.06635302]
[1773249622656,0.09869775,71055.0,71025.0,0.13933079]
[1773249623011,0.08823985,71037.0,71026.0,0.13933079]
[1773249623270,0.08823985,71037.0,71021.0,0.00037205]
[1773249623271,0.08823985,71035.0,71021.0,0.00037205]
[1773249623455,0.08823985,71035.0,71003.0,0.0002]
[1773249623653,0.08861137,71035.0,71008.0,0.00144]
[1773249623998,0.08823985,71033.0,71008.0,0.00144]
[1773249624200,0.08823985,71033.0,71026.0,0.001]
[1773249624619,0.00037152,71035.0,71003.0,0.07061906]
[1773249624620,0.00144,71032.0,71016.0,0.00144]
[1773249624836,0.08823985,71031.0,71016.0,0.00144]
[1773249625035,0.00037152,71035.0,71017.0,0.19828992]
[1773249625237,0.001,71027.0,71018.0,0.07040468]
[1773249625859,0.00907914,71033.0,71018.0,0.07040468]
[1773249626532,0.00907914,71033.0,71018.0,0.07140468]
[1773249626733,0.08823985,71057.0,71021.0,0.524285]
[1773249626981,0.00144,71056.0,71021.0,0.00037152]
[1773249627177,0.08823985,71045.0,71021.0,0.00037152]
[1773249627383,0.00022001,71046.0,71022.0,0.33000072]
[1773249627647,0.07036543,71058.0,71023.0,0.301637]
[1773249627811,0.07036543,71058.0,71013.0,0.00144]
[1773249627812,0.08967985,71057.0,71013.0,0.00144]
[1773249627993,0.301637,71033.0,71014.0,0.19972992]
[1773249628239,0.301637,71038.0,71015.0,0.0014]
[1773249628653,0.301637,71038.0,71018.0,0.001]
[1773249628957,0.08823985,71047.0,71018.0,0.002]
[1773249628958,0.301637,71044.0,71018.0,0.002]
[1773249629131,0.30200875,71044.0,71015.0,0.0014]
[1773249629304,0.001,71038.0,71016.0,0.07040666]
[1773249629512,0.30200875,71044.0,71016.0,0.07040666]
[1773249629513,0.07075115,71044.0,71016.0,0.07040666]
[1773249629699,0.08823985,71043.0,71016.0,0.07040666]
[1773249629899,0.301637,71041.0,71018.0,0.001]
[1773249630120,0.00037175,71044.0,71020.0,0.12515057]
[1773249630716,0.00037175,71044.0,71016.0,0.07040666]
[1773249631113,0.00037175,71044.0,71017.0,0.17199]
[1773249631321,0.00037175,71044.0,71020.0,0.12515057]
[1773249631539,0.07036864,71055.0,71020.0,0.12515057]
[1773249631540,0.07051271,71052.0,71020.0,0.12515057]
[1773249631740,0.31669771,71052.0,71021.0,1.028259]
[1773249631958,0.31669771,71052.0,71023.0,1.10034]
[1773249632191,0.24632574,71052.0,71024.0,0.03614459]
[1773249632346,0.31669733,71052.0,71023.0,1.00234]
[1773249632549,0.07051233,71052.0,71023.0,0.364262]
[1773249632747,0.07051233,71052.0,71024.0,0.04968292]
[1773249633069,0.00022001,71044.0,71026.0,0.04968292]
[1773249633279,0.00022001,71044.0,71027.0,0.07039576]
[1773249633470,0.00022001,71044.0,71028.0,0.04968292]
[1773249633669,0.00022001,71044.0,71030.0,0.04968292]
[1773249635228,0.00022001,71044.0,71029.0,0.00144]
[1773249635229,0.07059992,71044.0,71029.0,0.00144]
[1773249635418,0.00036075,71052.0,71031.0,0.04968292]
[1773249635629,0.00036075,71052.0,71030.0,0.19520972]
[1773249635630,0.07037198,71051.0,71030.0,0.19520972]
[1773249635800,0.07037198,71051.0,71030.0,0.24489264]
[1773249636173,0.07037198,71051.0,71030.0,0.12007571]
[1773249636372,0.07037198,71051.0,71030.0,0.07039279]
[1773249636576,0.07073189,71052.0,71031.0,0.05112292]
[1773249637129,0.05076284,71051.0,71031.0,0.00144]
[1773249637352,0.05076284,71051.0,71030.0,0.07039279]
[1773249637638,0.07037297,71050.0,71033.0,0.07038981]
[1773249639272,0.07037297,71050.0,71034.0,0.04968292]
[1773249639475,0.07137297,71050.0,71035.0,0.07038783]
[1773249639901,0.07137297,71050.0,71036.0,0.04968292]
[1773249640260,0.07037297,71050.0,71036.0,0.04968292]
[1773249640591,0.07137297,71050.0,71036.0,0.04968292]
[1773249640817,0.07157297,71050.0,71036.0,0.04968292]
[1773249641353,0.07157297,71050.0,71022.0,0.0706202]
[1773249641354,0.06239832,71049.0,71022.0,0.0706202]
[1773249641560,0.06239832,71049.0,71022.0,0.10559173]
[1773249641561,0.06239832,71047.0,71022.0,0.10559173]
[1773249641779,0.07157297,71050.0,71025.0,0.05803921]
[1773249641780,0.07157314,71050.0,71025.0,0.05803921]
[1773249641958,0.13397146,71050.0,71027.0,0.05803921]
[1773249642225,0.06239832,71049.0,71023.0,0.00144]
[1773249642408,0.06239832,71049.0,71024.0,0.00144]
[1773249642612,0.06239832,71049.0,71022.0,0.10559173]
[1773249642613,0.06239832,71049.0,71025.0,0.14056722]
[1773249642813,0.06239832,71046.0,71026.0,0.13912722]
[1773249643024,0.06239832,71046.0,71025.0,0.00144]
[1773249643247,0.06239832,71046.0,71020.0,0.00037175]
[1773249643403,0.07037792,71045.0,71021.0,0.00144]
[1773249643595,0.06239832,71044.0,71021.0,0.07184113]
[1773249644046,0.06239832,71044.0,71021.0,0.07040113]
[1773249644195,0.06239832,71044.0,71022.0,0.00144]
[1773249644399,0.06239832,71044.0,71017.0,0.07040558]
[1773249644601,0.06277007,71044.0,71018.0,0.07184379]
[1773249645567,0.07037991,71043.0,71018.0,0.07184379]
[1773249645797,0.06239832,71042.0,71018.0,0.07184379]
[1773249646700,0.06239832,71042.0,71019.0,0.00144]
[1773249647532,0.06239832,71042.0,71020.0,0.00144]
[1773249647740,0.06239832,71040.0,71020.0,0.07184199]
[1773249647910,0.06239832,71038.0,71020.0,0.07184199]
[1773249648111,0.06239832,71038.0,71020.0,0.07040199]
[1773249648313,0.06239832,71038.0,71015.0,0.00166]
[1773249648885,0.00144,71037.0,71019.0,0.027383]
[1773249649135,0.06239832,71036.0,71019.0,0.027383]
[1773249649334,0.06239832,71036.0,71018.0,0.00022]
[1773249649761,0.06239832,71034.0,71015.0,0.00166]
[1773249650806,0.06239832,71034.0,71015.0,0.07206728]
[1773249651013,0.003,71036.0,71016.0,0.06800915]
[1773249651217,0.07338689,71036.0,71016.0,0.06800915]
[1773249651617,0.07138689,71036.0,71017.0,0.07040567]
[1773249651952,0.06703236,71033.0,71018.0,0.00144]
[1773249652458,0.003,71034.0,71019.0,0.00144]
[1773249652755,0.06703236,71033.0,71019.0,0.00144]
[1773249653121,0.06703236,71033.0,71020.0,0.00144]
[1773249653752,0.0703908,71032.0,71017.0,0.07040567]
[1773249653959,0.0703908,71032.0,71021.0,0.00144]
[1773249654341,0.06912878,71032.0,71021.0,0.00144]
[1773249654542,0.06878166,71032.0,71021.0,0.00144]
[1773249654770,0.06703236,71031.0,71015.0,0.00022]
[1773249655022,0.06703236,71031.0,71016.0,0.00144]
[1773249655380,0.06703236,71031.0,71017.0,0.1392174]
[1773249655575,0.06703236,71031.0,71018.0,0.1392174]
[1773249655899,0.07039279,71030.0,71019.0,0.1392174]
[1773249656104,0.06703236,71029.0,71019.0,0.00144]
[1773249656340,0.06703236,71029.0,71010.0,0.07063252]
[1773249656341,0.06703236,71029.0,71010.0,1e-08]
[1773249656659,0.06703236,71029.0,70994.0,0.16703054]
[1773249656901,0.07039279,71030.0,70992.0,0.00144]
[1773249656902,0.06703236,71027.0,70992.0,0.00144]
[1773249657098,0.06703236,71025.0,70988.0,0.0004384]
[1773249657305,0.06703236,71025.0,70989.0,0.00144]
[1773249657679,0.06703236,71025.0,70988.0,0.0004384]